[Event "LEM Niedersachsen-A-Open 2025"]
[Site "Verden"]
[Date "2025.01.03"]
[Round "4.25"]
[White "Loecken, Siegfried"]
[Black "Muecke, Leonard"]
[Result "0-1"]
[ECO "B25"]
[WhiteElo "2004"]
[BlackElo "1853"]
[Annotator "NA RC"]
[PlyCount "68"]
[EventDate "2024.12.27"]
[EventType "swiss"]
[EventCountry "GER"]
[SourceTitle "playchess.com"]
[Source "ChessBase"]
[SourceQuality "1"]
[TimeControl "40/5400+30:1800+30"]

1. e4 {[%emt 0:00:01]} d6 {[%emt 0:02:39]} 2. Nc3 {[%emt 0:00:16]} g6 {[%emt 0:05:04]} 3. g3 {[%emt 0:00:57]} Nf6 {[%emt 0:00:20]} 4. Bg2 {[%emt 0:00:04]} Bg7 {[%emt 0:00:04]} 5. d3 {[%emt 0:00:11]} c5 {[%emt 0:00:10]} 6. f4 {[%emt 0:00:10]} Nc6 {[%emt 0:00:21]} 7. Nf3 {[%emt 0:00:03]} Bg4 {[%emt 0:00:14]} 8. h3 {[%emt 0:00:13]} Bxf3 {[%emt 0:00:04]} 9. Qxf3 {[%emt 0:00:11]} Nd4 {[%emt 0:00:18]} 10. Qf2 {[%emt 0:00:07]} Rb8 {[%emt 0:00:34]} 11. Nd1 {[%emt 0:02:11]} Qc7 {[%emt 0:05:51]} 12. c3 {[%emt 0:00:20]} Nc6 {[%emt 0:00:38]} 13. Ne3 {[%emt 0:00:11]} e6 {[%emt 0:09:58]} 14. O-O {[%emt 0:00:25]} O-O {[%emt 0:00:09]} 15. g4 {[%emt 0:00:15]} Nd7 {[%emt 0:08:52]} 16. f5 {[%emt 0:03:22]} Rfe8 {[%emt 0:19:16]} 17. Qc2 {[%emt 0:16:14]} b5 {[%emt 0:02:46]} 18. Bd2 {[%emt 0:00:16]} b4 {[%emt 0:03:32]} 19. Be1 {[%emt 0:03:47]} bxc3 {[%emt 0:01:31]} 20. bxc3 {[%emt 0:00:03]} Nde5 {[%emt 0:11:06]} 21. Bg3 {[%emt 0:02:38]} Bh6 {[%emt 0:01:22]} 22. Rfe1 {[%emt 0:05:19]} c4 {[%emt 0:09:43]} 23. Nxc4 {[%emt 0:12:56]} Nxc4 {[%emt 0:00:25]} 24. dxc4 {[%emt 0:00:09]} Ne5 {[%emt 0:01:29]} 25. Bxe5 {[%emt 0:09:20]} dxe5 {[%emt 0:00:11]} 26. fxg6 {[%emt 0:00:09]} hxg6 {[%emt 0:00:47]} 27. Bf1 {[%emt 0:00:44]} Rb6 {[%emt 0:03:40]} 28. Qf2 {[%emt 0:02:28]} Reb8 {[%emt 0:00:50]} 29. Rad1 {[%emt 0:01:19]} Bf4 {[%emt 0:03:23]} 30. Qf3 {[%emt 0:03:44]} Kg7 {[%emt 0:05:15]} 31. Qd3 {[%emt 0:00:32]} Qc5+ {[%emt 0:01:40]} 32. Kg2 {[%emt 0:00:15]} Rb2+ {[%emt 0:00:39]} 33. Re2 {[%emt 0:00:09]} Rxe2+ {[%emt 0:00:22]} 34. Qxe2 {[%emt 0:00:32]} Qa3 {[%emt 0:00:40]} 0-1

[Event "LEM Niedersachsen-A-Open 2025"]
[Site "Verden"]
[Date "2025.01.03"]
[Round "4.26"]
[White "Beckmann, Jonathan"]
[Black "Ludwig, Bernard"]
[Result "1/2-1/2"]
[ECO "E39"]
[WhiteElo "1812"]
[BlackElo "1962"]
[Annotator "NA RC"]
[PlyCount "37"]
[EventDate "2024.12.27"]
[EventType "swiss"]
[EventCountry "GER"]
[SourceTitle "playchess.com"]
[Source "ChessBase"]
[SourceQuality "1"]
[TimeControl "40/5400+30:1800+30"]

1. d4 {[%emt 0:00:01]} Nf6 {[%emt 0:00:05]} 2. c4 {[%emt 0:00:04]} e6 {[%emt 0:00:06]} 3. Nc3 {[%emt 0:00:04]} Bb4 {[%emt 0:00:15]} 4. Qc2 {[%emt 0:00:07]} c5 {[%emt 0:00:35]} 5. dxc5 {[%emt 0:00:18]} Bxc5 {[%emt 0:00:51]} 6. Nf3 {[%emt 0:00:37]} b6 {[%emt 0:09:57]} 7. e3 {[%emt 0:03:42]} Bb7 {[%emt 0:00:57]} 8. Be2 {[%emt 0:03:20]} O-O {[%emt 0:04:05]} 9. O-O {[%emt 0:02:11]} d5 {[%emt 0:04:58]} 10. Rd1 {[%emt 0:03:32]} Qe7 {[%emt 0:03:45]} 11. cxd5 {[%emt 0:04:18]} Nxd5 {[%emt 0:01:09]} 12. a3 {[%emt 0:03:14]} Nxc3 {[%emt 0:05:48]} 13. Qxc3 {[%emt 0:00:50]} Rd8 {[%emt 0:03:26]} 14. Rxd8+ {[%emt 0:13:24]} Qxd8 {[%emt 0:00:08]} 15. b4 {[%emt 0:01:22]} Be7 {[%emt 0:01:13]} 16. Bb2 {[%emt 0:00:43]} Bf6 {[%emt 0:01:26]} 17. Qc2 {[%emt 0:00:54]} Nd7 {[%emt 0:04:07]} 18. Rd1 {[%emt 0:05:41]} Bxb2 {[%emt 0:04:36]} 19. Qxb2 {[%emt 0:55:38]} 1/2-1/2

[Event "LEM Niedersachsen-A-Open 2025"]
[Site "Verden"]
[Date "2025.01.03"]
[Round "4.27"]
[White "Boehnke, Marc"]
[Black "Rausch, Darius"]
[Result "1-0"]
[ECO "E72"]
[WhiteElo "1927"]
[BlackElo "1840"]
[Annotator "NA RC"]
[PlyCount "115"]
[EventDate "2024.12.27"]
[EventType "swiss"]
[EventCountry "GER"]
[SourceTitle "playchess.com"]
[Source "ChessBase"]
[SourceQuality "1"]
[TimeControl "40/5400+30:1800+30"]

1. d4 {[%emt 0:00:04]} Nf6 {[%emt 0:00:02]} 2. c4 {[%emt 0:00:06]} g6 {[%emt 0:00:04]} 3. Nc3 {[%emt 0:00:08]} Bg7 {[%emt 0:00:04]} 4. g3 {[%emt 0:00:29]} O-O {[%emt 0:00:09]} 5. Bg2 {[%emt 0:00:09]} d6 {[%emt 0:00:10]} 6. e4 {[%emt 0:01:23]} Nc6 {[%emt 0:00:56]} 7. Nge2 {[%emt 0:00:42]} a6 {[%emt 0:00:12]} 8. O-O {[%emt 0:00:42]} Rb8 {[%emt 0:00:23]} 9. h3 {[%emt 0:03:39]} Na5 {[%emt 0:04:34]} 10. Qd3 {[%emt 0:08:27]} c5 {[%emt 0:02:59]} 11. Be3 {[%emt 0:01:18]} Nd7 {[%emt 0:06:46]} 12. b3 {[%emt 0:06:14]} cxd4 {[%emt 0:04:01]} 13. Nxd4 {[%emt 0:00:25]} Ne5 {[%emt 0:02:52]} 14. Qd2 {[%emt 0:05:38]} Nac6 {[%emt 0:10:14]} 15. Rac1 {[%emt 0:11:57]} Bxh3 {[%emt 0:06:28]} 16. f3 {[%emt 0:19:29]} Bd7 {[%emt 0:05:53]} 17. Nde2 {[%emt 0:06:52]} f5 {[%emt 0:06:49]} 18. Nf4 {[%emt 0:02:34]} Qa5 {[%emt 0:04:13]} 19. Nfd5 {[%emt 0:02:12]} b5 {[%emt 0:00:24]} 20. c5 {[%emt 0:00:35]} dxc5 {[%emt 0:11:10]} 21. Bxc5 {[%emt 0:00:49]} Rfe8 {[%emt 0:00:52]} 22. f4 {[%emt 0:01:30]} Nf7 {[%emt 0:04:49]} 23. e5 {[%emt 0:03:43]} e6 {[%emt 0:01:47]} 24. Nf6+ {[%emt 0:00:26]} Bxf6 {[%emt 0:00:06]} 25. Qxd7 {[%emt 0:00:01]} Ncxe5 {[%emt 0:04:05]} 26. fxe5 {[%emt 0:01:15]} Nxe5 {[%emt 0:07:42]} 27. Qd6 {[%emt 0:07:20]} Nf7 {[%emt 0:00:26]} 28. Qd2 {[%emt 0:00:37]} Rbd8 {[%emt 0:06:07]} 29. Qc2 {[%emt 0:00:50]} Qc7 {[%emt 0:01:46]} 30. Qf2 {[%emt 0:01:52]} Rd3 {[%emt 0:01:33]} 31. Ne4 {[%emt 0:01:57]} Be5 {[%emt 0:01:49]} 32. Bd6 {[%emt 0:01:12]} Nxd6 {[%emt 0:05:04]} 33. Rxc7 {[%emt 0:01:30]} Bd4 {[%emt 0:00:05]} 34. Qxd4 {[%emt 0:00:11]} Rxd4 {[%emt 0:00:11]} 35. Nf6+ {[%emt 0:00:01]} Kf8 {[%emt 0:00:53]} 36. Nxh7+ {[%emt 0:00:10]} Kg8 {[%emt 0:00:07]} 37. Nf6+ {[%emt 0:00:01]} Kf8 {[%emt 0:00:16]} 38. Nxe8 {[%emt 0:00:04]} Nxe8 {[%emt 0:01:50]} 39. Rc6 {[%emt 0:00:12]} Kf7 {[%emt 0:00:26]} 40. Rxa6 {[%emt 0:00:09]} e5 {[%emt 0:00:16]} 41. Bc6 {[%emt 0:30:24]} Nd6 {[%emt 0:30:23]} 42. Rb6 {[%emt 0:01:19]} Rd3 {[%emt 0:00:00]} 43. Kg2 {[%emt 0:00:00]} e4 {[%emt 0:00:00]} 44. Bxb5 {[%emt 0:00:00]} Rd2+ {[%emt 0:00:00]} 45. Rf2 {[%emt 0:00:00]} Rd4 {[%emt 0:00:00]} 46. Rc2 {[%emt 0:00:00]} Ke7 {[%emt 0:00:00]} 47. Rc7+ {[%emt 0:00:00]} Kf6 {[%emt 0:00:00]} 48. Rcc6 {[%emt 0:00:00]} Rd2+ {[%emt 0:00:00]} 49. Kf1 {[%emt 0:00:00]} Ke5 {[%emt 0:00:00]} 50. Rxd6 {[%emt 0:00:00]} Rxd6 {[%emt 0:00:00]} 51. Rxd6 {[%emt 0:00:00]} Kxd6 {[%emt 0:00:00]} 52. Be8 {[%emt 0:00:00]} g5 {[%emt 0:00:00]} 53. a4 {[%emt 0:00:00]} f4 {[%emt 0:00:00]} 54. gxf4 {[%emt 0:00:00]} gxf4 {[%emt 0:00:00]} 55. Bg6 {[%emt 0:00:00]} e3 {[%emt 0:00:00]} 56. Ke2 {[%emt 0:00:00]} Kc5 {[%emt 0:00:00]} 57. Bd3 {[%emt 0:00:00]} Kb4 {[%emt 0:00:00]} 58. Kf3 {[%emt 0:00:00]} 1-0

[Event "LEM Niedersachsen-A-Open 2025"]
[Site "Verden"]
[Date "2025.01.03"]
[Round "4.28"]
[White "Direk, Oguzhan"]
[Black "Nuerenberg, Marius"]
[Result "0-1"]
[ECO "A45"]
[WhiteElo "1838"]
[BlackElo "1911"]
[Annotator "NA RC"]
[PlyCount "44"]
[EventDate "2024.12.27"]
[EventType "swiss"]
[EventCountry "GER"]
[SourceTitle "playchess.com"]
[Source "ChessBase"]
[SourceQuality "1"]
[TimeControl "40/5400+30:1800+30"]

1. d4 {[%emt 0:00:08]} Nf6 {[%emt 0:00:13]} 2. Nc3 {[%emt 0:00:04]} e6 {[%emt 0:00:15]} 3. Bf4 {[%emt 0:00:08]} Bb4 {[%emt 0:00:05]} 4. Qd3 {[%emt 0:00:04]} b6 {[%emt 0:00:05]} 5. Qg3 {[%emt 0:04:41]} Nh5 {[%emt 0:34:42]} 6. Qf3 {[%emt 0:00:54]} Nxf4 {[%emt 0:00:56]} 7. Qxa8 {[%emt 0:00:38]} Nc6 {[%emt 0:01:04]} 8. e3 {[%emt 0:01:14]} Nd5 {[%emt 0:01:54]} 9. a3 {[%emt 0:03:57]} Bxc3+ {[%emt 0:04:26]} 10. bxc3 {[%emt 0:01:05]} b5 {[%emt 0:00:12]} 11. Bxb5 {[%emt 0:01:28]} Nb6 {[%emt 0:00:07]} 12. Bxc6 {[%emt 0:01:01]} Nxa8 {[%emt 0:00:08]} 13. Bxa8 {[%emt 0:00:05]} c6 {[%emt 0:03:13]} 14. Bxc6 {[%emt 0:03:44]} dxc6 {[%emt 0:00:07]} 15. Nf3 {[%emt 0:00:04]} Ba6 {[%emt 0:02:35]} 16. Rb1 {[%emt 0:01:24]} O-O {[%emt 0:00:28]} 17. Kd2 {[%emt 0:00:08]} c5 {[%emt 0:01:04]} 18. Rb3 {[%emt 0:00:50]} Bc4 {[%emt 0:09:23]} 19. Rb7 {[%emt 0:00:51]} cxd4 {[%emt 0:00:18]} 20. exd4 {[%emt 0:00:49]} a6 {[%emt 0:04:51]} 21. Rhb1 {[%emt 0:05:22]} Qf6 {[%emt 0:05:01]} 22. R1b4 {[%emt 0:00:30]} Bd5 {[%emt 0:00:33]} 0-1

[Event "LEM Niedersachsen-A-Open 2025"]
[Site "Verden"]
[Date "2025.01.03"]
[Round "4.29"]
[White "Seer, Maurice"]
[Black "Lieb, Max"]
[Result "1-0"]
[ECO "B33"]
[WhiteElo "1911"]
[BlackElo "1791"]
[Annotator "NA RC"]
[PlyCount "61"]
[EventDate "2024.12.27"]
[EventType "swiss"]
[EventCountry "GER"]
[SourceTitle "playchess.com"]
[Source "ChessBase"]
[SourceQuality "1"]
[TimeControl "40/5400+30:1800+30"]

1. e4 {[%emt 0:00:03]} c5 {[%emt 0:00:09]} 2. Nf3 {[%emt 0:00:07]} Nc6 {[%emt 0:00:06]} 3. d4 {[%emt 0:00:08]} cxd4 {[%emt 0:00:07]} 4. Nxd4 {[%emt 0:00:11]} Nf6 {[%emt 0:00:11]} 5. Nc3 {[%emt 0:00:12]} e5 {[%emt 0:00:10]} 6. Ndb5 {[%emt 0:00:21]} d6 {[%emt 0:00:15]} 7. Bg5 {[%emt 0:02:14]} a6 {[%emt 0:00:10]} 8. Na3 {[%emt 0:00:10]} b5 {[%emt 0:00:12]} 9. Bxf6 {[%emt 0:00:25]} gxf6 {[%emt 0:00:14]} 10. Nd5 {[%emt 0:00:23]} Bg7 {[%emt 0:00:22]} 11. g3 {[%emt 0:01:12]} f5 {[%emt 0:04:40]} 12. exf5 {[%emt 0:03:15]} Bxf5 {[%emt 0:00:42]} 13. Bg2 {[%emt 0:03:21]} O-O {[%emt 0:04:49]} 14. c3 {[%emt 0:19:26]} Be6 {[%emt 0:05:43]} 15. O-O {[%emt 0:03:08]} f5 {[%emt 0:02:37]} 16. Nc2 {[%emt 0:16:08]} f4 {[%emt 0:12:40]} 17. Nxf4 {[%emt 0:04:44]} exf4 {[%emt 0:00:57]} 18. Bxc6 {[%emt 0:00:50]} Bh3 {[%emt 0:19:57]} 19. Qd5+ {[%emt 0:05:19]} Kh8 {[%emt 0:01:18]} 20. Bxa8 {[%emt 0:01:17]} Bxf1 {[%emt 0:00:16]} 21. Rxf1 {[%emt 0:01:56]} fxg3 {[%emt 0:00:22]} 22. hxg3 {[%emt 0:05:06]} Qxa8 {[%emt 0:00:28]} 23. Qxa8 {[%emt 0:00:55]} Rxa8 {[%emt 0:00:09]} 24. Rd1 {[%emt 0:00:46]} Re8 {[%emt 0:00:45]} 25. Kf1 {[%emt 0:03:47]} Re6 {[%emt 0:01:28]} 26. Nb4 {[%emt 0:03:47]} a5 {[%emt 0:00:22]} 27. Nc6 {[%emt 0:01:06]} a4 {[%emt 0:00:26]} 28. a3 {[%emt 0:03:50]} Kg8 {[%emt 0:01:05]} 29. Rd5 {[%emt 0:03:54]} Kf8 {[%emt 0:01:24]} 30. Rxb5 {[%emt 0:00:53]} d5 {[%emt 0:00:18]} 31. Nd4 {[%emt 0:06:37]} 1-0

[Event "LEM Niedersachsen-A-Open 2025"]
[Site "Verden"]
[Date "2025.01.03"]
[Round "4.30"]
[White "Stein, Luis"]
[Black "Krumschmidt, Michael"]
[Result "1-0"]
[ECO "B52"]
[WhiteElo "1899"]
[BlackElo "1787"]
[Annotator "NA RC"]
[PlyCount "87"]
[EventDate "2024.12.27"]
[EventType "swiss"]
[EventCountry "GER"]
[SourceTitle "playchess.com"]
[Source "ChessBase"]
[SourceQuality "1"]
[TimeControl "40/5400+30:1800+30"]

1. e4 {[%emt 0:00:11]} c5 {[%emt 0:03:29]} 2. Nf3 {[%emt 0:00:05]} d6 {[%emt 0:00:11]} 3. Bb5+ {[%emt 0:00:04]} Bd7 {[%emt 0:00:28]} 4. Bxd7+ {[%emt 0:00:05]} Nxd7 {[%emt 0:00:25]} 5. O-O {[%emt 0:00:06]} Ngf6 {[%emt 0:00:22]} 6. Qe2 {[%emt 0:00:30]} a6 {[%emt 0:00:56]} 7. d4 {[%emt 0:00:34]} cxd4 {[%emt 0:00:25]} 8. Nxd4 {[%emt 0:00:06]} g6 {[%emt 0:03:10]} 9. c4 {[%emt 0:05:58]} Bg7 {[%emt 0:03:11]} 10. Rd1 {[%emt 0:00:28]} O-O {[%emt 0:00:20]} 11. Nc3 {[%emt 0:00:25]} Rc8 {[%emt 0:00:58]} 12. Be3 {[%emt 0:09:59]} Ne5 {[%emt 0:03:09]} 13. c5 {[%emt 0:05:00]} Qc7 {[%emt 0:11:31]} 14. cxd6 {[%emt 0:02:24]} exd6 {[%emt 0:00:20]} 15. Rac1 {[%emt 0:03:35]} Qb8 {[%emt 0:03:53]} 16. Bg5 {[%emt 0:11:54]} Ned7 {[%emt 0:14:16]} 17. Nc2 {[%emt 0:09:55]} Rfe8 {[%emt 0:01:31]} 18. f3 {[%emt 0:00:52]} b5 {[%emt 0:01:08]} 19. Ne3 {[%emt 0:02:37]} Qb6 {[%emt 0:03:44]} 20. Kh1 {[%emt 0:01:09]} h6 {[%emt 0:04:04]} 21. Ncd5 {[%emt 0:45:03]} Qb7 {[%emt 0:03:31]} 22. Rxc8 {[%emt 0:00:00]} Qxc8 {[%emt 0:01:46]} 23. Bf4 {[%emt 0:00:00]} Nxd5 {[%emt 0:09:34]} 24. Nxd5 {[%emt 0:00:00]} Ne5 {[%emt 0:01:12]} 25. Rc1 {[%emt 0:00:00]} Qb8 {[%emt 0:12:45]} 26. b3 {[%emt 0:00:00]} Kf8 {[%emt 0:02:12]} 27. Qc2 {[%emt 0:00:00]} Rd8 {[%emt 0:05:38]} 28. Be3 {[%emt 0:00:00]} Nd7 {[%emt 0:02:45]} 29. Qc7 {[%emt 0:00:00]} Nc5 {[%emt 0:04:46]} 30. Qxb8 {[%emt 0:00:00]} Rxb8 {[%emt 0:00:02]} 31. Bxc5 {[%emt 0:00:00]} dxc5 {[%emt 0:00:02]} 32. Rxc5 {[%emt 0:00:00]} Bd4 {[%emt 0:00:43]} 33. Rc6 {[%emt 0:00:00]} a5 {[%emt 0:00:03]} 34. g4 {[%emt 0:00:24]} a4 {[%emt 0:00:29]} 35. b4 {[%emt 0:00:11]} a3 {[%emt 0:00:36]} 36. Kg2 {[%emt 0:01:04]} Kg7 {[%emt 0:00:17]} 37. Kf1 {[%emt 0:00:26]} Rb7 {[%emt 0:00:38]} 38. Ke2 {[%emt 0:00:45]} h5 {[%emt 0:00:56]} 39. h3 {[%emt 0:01:47]} Rd7 {[%emt 0:00:36]} 40. Kd3 {[%emt 0:01:00]} Be5 {[%emt 0:00:07]} 41. Rb6 {[%emt 0:04:31]} f5 {[%emt 0:01:48]} 42. gxf5 {[%emt 0:06:14]} gxf5 {[%emt 0:02:01]} 43. Rxb5 {[%emt 0:06:05]} Kg6 {[%emt 0:00:43]} 44. Ke3 {[%emt 0:02:25]} 1-0

[Event "LEM Niedersachsen-A-Open 2025"]
[Site "Verden"]
[Date "2025.01.03"]
[Round "4.31"]
[White "Harms, Friedjof"]
[Black "Holtwessels, Jan"]
[Result "0-1"]
[ECO "B00"]
[WhiteElo "1884"]
[BlackElo "1812"]
[Annotator "NA RC"]
[PlyCount "70"]
[EventDate "2024.12.27"]
[EventType "swiss"]
[EventCountry "GER"]
[SourceTitle "playchess.com"]
[Source "ChessBase"]
[SourceQuality "1"]
[TimeControl "40/5400+30:1800+30"]

1. e4 {[%emt 0:00:45]} Nc6 {[%emt 0:00:04]} 2. d4 {[%emt 0:01:38]} d5 {[%emt 0:00:34]} 3. e5 {[%emt 0:02:19]} Bf5 {[%emt 0:00:53]} 4. Nf3 {[%emt 0:03:58]} e6 {[%emt 0:00:17]} 5. c3 {[%emt 0:07:52]} f6 {[%emt 0:00:13]} 6. exf6 {[%emt 0:02:44]} Nxf6 {[%emt 0:03:19]} 7. Bf4 {[%emt 0:05:08]} Bd6 {[%emt 0:02:08]} 8. Ne5 {[%emt 0:07:56]} Bxe5 {[%emt 0:02:01]} 9. dxe5 {[%emt 0:01:25]} Nd7 {[%emt 0:01:23]} 10. Bb5 {[%emt 0:03:09]} O-O {[%emt 0:04:20]} 11. Bxc6 {[%emt 0:01:46]} bxc6 {[%emt 0:01:07]} 12. Bg3 {[%emt 0:02:12]} Rb8 {[%emt 0:08:50]} 13. b3 {[%emt 0:03:58]} Qe8 {[%emt 0:06:18]} 14. O-O {[%emt 0:01:26]} Qg6 {[%emt 0:01:28]} 15. Nd2 {[%emt 0:03:31]} Nc5 {[%emt 0:06:14]} 16. f4 {[%emt 0:11:54]} a5 {[%emt 0:03:51]} 17. Nf3 {[%emt 0:05:20]} Bg4 {[%emt 0:01:47]} 18. Qe1 {[%emt 0:04:54]} Bxf3 {[%emt 0:01:35]} 19. Rxf3 {[%emt 0:04:16]} a4 {[%emt 0:02:04]} 20. b4 {[%emt 0:00:36]} Ne4 {[%emt 0:01:00]} 21. Qe3 {[%emt 0:02:24]} Rb7 {[%emt 0:04:19]} 22. Qd3 {[%emt 0:03:43]} Rb6 {[%emt 0:05:51]} 23. Bf2 {[%emt 0:01:03]} Rb5 {[%emt 0:02:13]} 24. a3 {[%emt 0:00:47]} Rfb8 {[%emt 0:01:50]} 25. c4 {[%emt 0:02:27]} dxc4 {[%emt 0:02:40]} 26. Qc2 {[%emt 0:05:29]} c5 {[%emt 0:06:29]} 27. Bxc5 {[%emt 0:03:12]} Nxc5 {[%emt 0:00:47]} 28. Qxg6 {[%emt 0:00:08]} hxg6 {[%emt 0:00:05]} 29. bxc5 {[%emt 0:00:10]} Rb1+ {[%emt 0:10:53]} 30. Rxb1 {[%emt 0:00:53]} Rxb1+ {[%emt 0:00:06]} 31. Kf2 {[%emt 0:00:03]} Rb3 {[%emt 0:00:37]} 32. Ke2 {[%emt 0:01:06]} c3 {[%emt 0:06:18]} 33. Kd3 {[%emt 0:02:41]} Rxa3 {[%emt 0:01:32]} 34. Rf2 {[%emt 0:04:03]} c2+ {[%emt 0:01:24]} 35. Kd2 {[%emt 0:00:10]} Ra1 {[%emt 0:13:30]} 0-1

[Event "LEM Niedersachsen-A-Open 2025"]
[Site "Verden"]
[Date "2025.01.03"]
[Round "4.32"]
[White "Aden, Dagmar"]
[Black "Monnerjahn, Lukas"]
[Result "0-1"]
[ECO "C44"]
[WhiteElo "1861"]
[BlackElo "1909"]
[Annotator "NA RC"]
[PlyCount "100"]
[EventDate "2024.12.27"]
[EventType "swiss"]
[EventCountry "GER"]
[SourceTitle "playchess.com"]
[Source "ChessBase"]
[SourceQuality "1"]
[TimeControl "40/5400+30:1800+30"]

1. e4 {[%emt 0:00:03]} e5 {[%emt 0:00:04]} 2. Bc4 {[%emt 0:00:09]} Nf6 {[%emt 0:00:06]} 3. d4 {[%emt 0:00:23]} exd4 {[%emt 0:00:14]} 4. Nf3 {[%emt 0:00:40]} Bb4+ {[%emt 0:00:12]} 5. Bd2 {[%emt 0:02:01]} Bxd2+ {[%emt 0:00:06]} 6. Nbxd2 {[%emt 0:01:36]} Nc6 {[%emt 0:00:16]} 7. Nb3 {[%emt 0:05:17]} O-O {[%emt 0:04:44]} 8. Nbxd4 {[%emt 0:03:31]} Nxe4 {[%emt 0:01:39]} 9. Nxc6 {[%emt 0:02:43]} bxc6 {[%emt 0:01:46]} 10. O-O {[%emt 0:01:25]} d5 {[%emt 0:01:38]} 11. Bd3 {[%emt 0:01:42]} Nf6 {[%emt 0:08:18]} 12. h3 {[%emt 0:01:37]} c5 {[%emt 0:05:15]} 13. c3 {[%emt 0:01:21]} Qd6 {[%emt 0:02:53]} 14. Re1 {[%emt 0:02:37]} Bb7 {[%emt 0:03:46]} 15. Bc2 {[%emt 0:03:38]} Rfe8 {[%emt 0:02:27]} 16. Qd2 {[%emt 0:05:55]} h6 {[%emt 0:10:04]} 17. Nh4 {[%emt 0:02:29]} d4 {[%emt 0:05:20]} 18. Rxe8+ {[%emt 0:02:08]} Rxe8 {[%emt 0:00:30]} 19. Ba4 {[%emt 0:01:27]} Re5 {[%emt 0:01:20]} 20. cxd4 {[%emt 0:02:11]} cxd4 {[%emt 0:01:10]} 21. Bc2 {[%emt 0:06:04]} c5 {[%emt 0:02:14]} 22. Bd3 {[%emt 0:02:44]} Rh5 {[%emt 0:05:54]} 23. Nf5 {[%emt 0:02:41]} Rxf5 {[%emt 0:00:59]} 24. Bxf5 {[%emt 0:00:09]} Qd5 {[%emt 0:00:04]} 25. f3 {[%emt 0:00:55]} Qxf5 {[%emt 0:00:08]} 26. Re1 {[%emt 0:00:37]} Nd5 {[%emt 0:02:33]} 27. Re8+ {[%emt 0:02:44]} Kh7 {[%emt 0:00:04]} 28. Qa5 {[%emt 0:00:42]} d3 {[%emt 0:02:56]} 29. Qd2 {[%emt 0:01:17]} c4 {[%emt 0:00:51]} 30. Rb8 {[%emt 0:01:02]} Qg5 {[%emt 0:02:37]} 31. Qxg5 {[%emt 0:01:39]} hxg5 {[%emt 0:00:00]} 32. Kf2 {[%emt 0:00:35]} Ba6 {[%emt 0:03:41]} 33. Rd8 {[%emt 0:01:09]} c3 {[%emt 0:03:37]} 34. bxc3 {[%emt 0:00:53]} Nxc3 {[%emt 0:00:05]} 35. Ke3 {[%emt 0:00:53]} Bb5 {[%emt 0:01:56]} 36. a3 {[%emt 0:01:13]} a6 {[%emt 0:00:26]} 37. Rd4 {[%emt 0:02:24]} f6 {[%emt 0:00:25]} 38. h4 {[%emt 0:00:53]} gxh4 {[%emt 0:00:10]} 39. Rxh4+ {[%emt 0:00:11]} Kg6 {[%emt 0:00:41]} 40. Rg4+ {[%emt 0:00:46]} Kf7 {[%emt 0:00:01]} 41. Rd4 {[%emt 0:31:10]} Na4 {[%emt 0:33:23]} 42. g4 {[%emt 0:02:05]} Nc5 {[%emt 0:06:01]} 43. Rb4 {[%emt 0:02:29]} Ke6 {[%emt 0:00:38]} 44. f4 {[%emt 0:02:31]} Kd5 {[%emt 0:01:07]} 45. Rd4+ {[%emt 0:00:41]} Kc6 {[%emt 0:00:12]} 46. Rb4 {[%emt 0:01:32]} Ba4 {[%emt 0:03:30]} 47. Rb8 {[%emt 0:02:42]} Bc2 {[%emt 0:01:20]} 48. Kd2 {[%emt 0:01:40]} Kd5 {[%emt 0:03:07]} 49. Rg8 {[%emt 0:01:44]} Kd4 {[%emt 0:01:00]} 50. Rxg7 {[%emt 0:01:34]} Nb3+ {[%emt 0:00:11]} 0-1

[Event "LEM Niedersachsen-A-Open 2025"]
[Site "Verden"]
[Date "2025.01.03"]
[Round "4.33"]
[White "Goertzen, Simon"]
[Black "Klages, Jonas"]
[Result "1-0"]
[ECO "C02"]
[WhiteElo "1887"]
[BlackElo "1776"]
[Annotator "NA RC"]
[PlyCount "91"]
[EventDate "2024.12.27"]
[EventType "swiss"]
[EventCountry "GER"]
[SourceTitle "playchess.com"]
[Source "ChessBase"]
[SourceQuality "1"]
[TimeControl "40/5400+30:1800+30"]

1. e4 {[%emt 0:01:39]} e6 {[%emt 0:00:04]} 2. d4 {[%emt 0:00:28]} d5 {[%emt 0:00:03]} 3. e5 {[%emt 0:00:06]} c5 {[%emt 0:00:03]} 4. c3 {[%emt 0:00:06]} Nc6 {[%emt 0:00:05]} 5. Nf3 {[%emt 0:00:12]} Bd7 {[%emt 0:00:08]} 6. Be2 {[%emt 0:00:23]} Qb6 {[%emt 0:00:21]} 7. O-O {[%emt 0:00:15]} Nge7 {[%emt 0:00:35]} 8. dxc5 {[%emt 0:01:09]} Qxc5 {[%emt 0:00:38]} 9. Be3 {[%emt 0:07:41]} Qa5 {[%emt 0:00:35]} 10. Re1 {[%emt 0:01:28]} Ng6 {[%emt 0:03:22]} 11. b4 {[%emt 0:01:17]} Qc7 {[%emt 0:01:13]} 12. Na3 {[%emt 0:02:00]} a6 {[%emt 0:04:22]} 13. Bd3 {[%emt 0:04:36]} Ncxe5 {[%emt 0:02:38]} 14. Nxe5 {[%emt 0:02:20]} Nxe5 {[%emt 0:10:07]} 15. Bf4 {[%emt 0:10:20]} Qxc3 {[%emt 0:03:03]} 16. Bxe5 {[%emt 0:01:02]} Qxa3 {[%emt 0:00:08]} 17. Re3 {[%emt 0:12:51]} Qxb4 {[%emt 0:14:14]} 18. Rb1 {[%emt 0:08:30]} Qa5 {[%emt 0:05:07]} 19. Rxb7 {[%emt 0:01:10]} Qxa2 {[%emt 0:03:59]} 20. Qh5 {[%emt 0:18:46]} Rc8 {[%emt 0:06:27]} 21. h4 {[%emt 0:11:49]} g6 {[%emt 0:06:50]} 22. Qf3 {[%emt 0:00:20]} Rg8 {[%emt 0:00:38]} 23. Rxd7 {[%emt 0:00:52]} Kxd7 {[%emt 0:01:04]} 24. Qxf7+ {[%emt 0:00:15]} Be7 {[%emt 0:00:55]} 25. Bf6 {[%emt 0:00:22]} Rge8 {[%emt 0:03:31]} 26. Qxe6+ {[%emt 0:01:06]} Kc7 {[%emt 0:00:05]} 27. Bxe7 {[%emt 0:00:28]} Kb7 {[%emt 0:00:19]} 28. Bxa6+ {[%emt 0:06:06]} Qxa6 {[%emt 0:01:33]} 29. Rb3+ {[%emt 0:00:09]} Ka7 {[%emt 0:01:01]} 30. Qd7+ {[%emt 0:00:19]} Ka8 {[%emt 0:00:48]} 31. Ra3 {[%emt 0:01:23]} Qxa3 {[%emt 0:00:15]} 32. Bxa3 {[%emt 0:00:07]} Rcd8 {[%emt 0:00:10]} 33. Qf7 {[%emt 0:02:00]} d4 {[%emt 0:00:10]} 34. Bc5 {[%emt 0:00:24]} Re1+ {[%emt 0:00:57]} 35. Kh2 {[%emt 0:00:05]} Ra1 {[%emt 0:00:13]} 36. Qf6 {[%emt 0:00:44]} Rc8 {[%emt 0:00:54]} 37. Qxd4 {[%emt 0:00:24]} Ra6 {[%emt 0:01:07]} 38. Qd5+ {[%emt 0:00:56]} Kb8 {[%emt 0:00:44]} 39. Bd6+ {[%emt 0:00:32]} Ka7 {[%emt 0:00:11]} 40. Qf7+ {[%emt 0:00:18]} Ka8 {[%emt 0:00:20]} 41. Bg3 {[%emt 0:30:14]} Ra7 {[%emt 0:30:23]} 42. Qd5+ {[%emt 0:00:14]} Rb7 {[%emt 0:00:06]} 43. Qd3 {[%emt 0:00:59]} Ra7 {[%emt 0:00:38]} 44. Qb5 {[%emt 0:01:40]} Rb7 {[%emt 0:00:15]} 45. Qa6+ {[%emt 0:00:09]} Ra7 {[%emt 0:00:09]} 46. Qxc8# {[%emt 0:00:07]} 1-0